bitfinex-derivatives/quotes_SOLF0:USTF0_20241009
["timestamp","ask_amount","ask_price","bid_price","bid_amount"]
[1728481137345,44.17,141.95,141.84,44.17]
[1728481137752,44.17,141.95,141.81,44.17]
[1728481137939,44.17,141.92,141.81,44.17]
[1728481138345,3.528,141.83,141.81,44.17]
[1728481138544,76.18,141.9,141.81,44.17]
[1728481139147,76.18,141.89,141.77,44.17]
[1728481139851,3.5287,141.8,141.75,44.17]
[1728481140156,44.17,141.87,141.75,44.17]
[1728481140341,3.5288,141.8,141.75,44.17]
[1728481140546,44.17,141.87,141.75,44.17]
[1728481140857,44.17,141.85,141.72,44.17]
[1728481141044,3.529,141.79,141.72,44.17]
[1728481141243,44.17,141.85,141.72,44.17]
[1728481141951,3.5295,141.77,141.72,44.17]
[1728481143156,3.40448,141.77,141.72,44.17]
[1728481143454,44.17,141.88,141.75,44.17]
[1728481144157,44.17,141.88,141.83,0.12502]
[1728481144660,44.17,141.84,141.71,0.12502]
[1728481145155,3.40418,141.79,141.72,44.17]
[1728481145359,44.17,141.86,141.74,44.17]
[1728481145555,3.529,141.79,141.74,44.17]
[1728481145760,44.17,141.86,141.74,44.17]
[1728481146156,3.40388,141.8,141.74,44.17]
[1728481146361,44.17,141.86,141.72,44.17]
[1728481146562,44.17,141.84,141.72,44.17]
[1728481146762,76.18,141.89,141.71,0.12502]
[1728481146763,44.17,141.82,141.71,0.12502]
[1728481147059,3.5289,141.8,141.72,3.5307]
[1728481147261,44.04498,141.85,141.72,44.17]
[1728481147454,76.2,141.86,141.72,44.17]
[1728481147455,44.17,141.82,141.72,44.17]
[1728481147658,44.17,141.8,141.71,0.12502]
[1728481148656,3.5305,141.73,141.71,0.12502]
[1728481149362,3.5307,141.72,141.71,0.12502]
[1728481149661,3.45510862,141.82,141.71,0.12502]
[1728481149861,44.17,141.79,141.71,0.12502]
[1728481150062,3.5307,141.72,141.71,0.12502]
[1728481150966,44.17,141.76,141.71,0.12502]
[1728481150967,120.39,141.76,141.71,0.12502]
[1728481151862,3.5307,141.72,141.71,0.12502]
[1728481154358,44.17,141.74,141.65,0.12502]
[1728481154961,44.17,141.76,141.65,44.29502]
[1728481155169,76.22,141.78,141.65,44.29502]
[1728481155368,76.22,141.78,141.69,3.5314]
[1728481155561,75.59607676,141.78,141.69,3.5314]
[1728481155766,75.59607676,141.78,141.71,0.12502]
[1728481157374,44.17,141.77,141.71,0.12502]
[1728481157766,44.17,141.74,141.65,0.12502]
[1728481158760,3.5312,141.7,141.65,44.29502]
[1728481158960,44.29502,141.77,141.65,44.29502]
[1728481159475,3.5309,141.71,141.66,3.532]
[1728481159772,0.12502,141.77,141.67,44.17]
[1728481159972,3.5302,141.74,141.7,3.5312]
[1728481160171,0.12502,141.77,141.67,44.17]
[1728481160376,0.12502,141.77,141.69,44.17]
[1728481160766,0.12502,141.77,141.67,44.17]
[1728481161072,3.5309,141.72,141.67,3.5318]
[1728481161273,0.12502,141.77,141.67,44.17]
[1728481161669,3.5303,141.74,141.7,3.531]
[1728481161974,0.12502,141.77,141.67,44.17]
[1728481162274,3.5306,141.73,141.69,3.5314]
[1728481162466,0.12502,141.77,141.67,44.17]
[1728481163071,44.17,141.76,141.65,3.2433125]
[1728481163269,44.17,141.76,141.66,5.85177398]
[1728481163476,44.17,141.76,141.67,2.31977398]
[1728481163682,44.17,141.76,141.68,2.31977398]
[1728481163870,44.17,141.76,141.66,47.2882925]
[1728481164169,44.17,141.76,141.68,3.1182925]
[1728481164374,3.5311,141.71,141.69,2.32032016]
[1728481164571,3.5311,141.71,141.7,2.32032016]
[1728481164872,3.5311,141.71,141.68,3.1182925]
[1728481165067,44.17,141.76,141.69,2.32677441]
[1728481165267,3.5309,141.71,141.7,2.32677441]
[1728481165870,3.5317,141.68,141.66,3.1182925]
[1728481166068,3.5317,141.68,141.65,0.12502]
[1728481166266,3.5317,141.68,141.66,2.29715658]
[1728481166467,44.17,141.74,141.65,6.7755125]
[1728481166468,3.5315,141.69,141.65,6.7755125]
[1728481166672,3.5315,141.69,141.66,2.29730918]
[1728481166973,3.5315,141.69,141.65,6.7755125]
[1728481167277,3.5315,141.69,141.66,5.82933785]
[1728481167472,3.5315,141.69,141.66,3.5321]
[1728481167981,3.5319,141.68,141.65,3.2433125]
[1728481168177,44.17,141.74,141.66,2.29933025]
[1728481168477,3.5319,141.68,141.65,0.12502]
[1728481168682,44.17,141.74,141.65,0.12502]
[1728481168867,44.17,141.72,141.65,0.12502]
[1728481169070,3.5312,141.7,141.65,0.12502]
[1728481169366,44.17,141.72,141.65,0.12502]
[1728481170179,44.17,141.74,141.65,3.65732]
[1728481170372,3.5317,141.68,141.66,2.30127692]
[1728481170676,44.17,141.74,141.65,0.12502]
[1728481170875,3.5321,141.67,141.65,0.12502]
[1728481171067,44.17,141.71,141.65,0.12502]
[1728481171269,44.17,141.69,141.65,0.12502]
[1728481171666,3.5322,141.66,141.65,0.12502]
[1728481172276,76.26,141.71,141.65,0.12502]
[1728481172277,3.5321,141.67,141.65,0.12502]
[1728481172477,120.43,141.71,141.65,0.12502]
[1728481172870,3.5322,141.66,141.65,0.12502]
[1728481173979,44.17,141.69,141.65,0.12502]
[1728481174183,3.5319,141.68,141.65,0.12502]
[1728481174374,76.26,141.71,141.65,0.12502]
[1728481174771,3.5319,141.67,141.65,0.12502]
[1728481175273,76.26,141.71,141.65,0.12502]
[1728481176079,121.7738,141.72,141.65,0.12502]
[1728481176877,3.532,141.67,141.65,0.12502]
[1728481177180,121.7738,141.72,141.65,0.12502]
[1728481177484,3.532,141.67,141.65,0.12502]
[1728481178381,3.5317,141.68,141.65,3.65742]
[1728481178775,121.7738,141.72,141.65,0.12502]
[1728481178972,3.5316,141.69,141.66,3.5321]
[1728481179176,3.5316,141.69,141.65,0.12502]
[1728481179177,1.3438,141.72,141.65,0.12502]
[1728481179377,1.3438,141.72,141.67,3.5319]
[1728481179378,3.5311,141.71,141.67,3.5319]
[1728481179576,1.3438,141.72,141.65,0.12502]
[1728481179981,3.531,141.71,141.68,3.5317]
[1728481180176,1.3438,141.72,141.65,0.12502]
[1728481180584,3.5314,141.7,141.67,3.5317]
[1728481180888,1.3438,141.72,141.65,0.12502]
[1728481181284,3.5314,141.7,141.66,3.5319]
[1728481181987,1.3438,141.72,141.65,0.12502]
[1728481182182,1.3438,141.72,141.67,3.5319]
[1728481182377,1.3438,141.72,141.65,0.12502]
[1728481182583,45.5138,141.72,141.65,0.12502]
[1728481182983,1.3438,141.72,141.65,0.12502]
[1728481183386,3.5311,141.71,141.68,3.5315]
[1728481183587,1.3438,141.72,141.68,3.5315]
[1728481183986,1.3438,141.72,141.65,0.12502]
[1728481184182,3.5314,141.7,141.67,3.5318]
[1728481184383,3.5314,141.7,141.65,0.12502]
[1728481184584,3.5314,141.7,141.67,3.5318]
[1728481185288,3.5314,141.7,141.68,3.5317]
[1728481185896,3.531,141.71,141.69,3.5314]
[1728481186295,3.49404458,141.9,141.65,44.29502]
[1728481186591,1.4453,141.8,141.74,3.5301]
[1728481186797,1.4453,141.8,141.68,44.17]
[1728481187194,3.65462,141.77,141.74,3.5301]
[1728481188505,45.57,141.76,141.66,45.17]
[1728481188797,45.57,141.76,141.65,0.12502]
[1728481189092,3.5307,141.73,141.65,0.12502]
[1728481189491,44.17,141.74,141.66,3.532]
[1728481189700,44.17,141.74,141.65,0.12502]
[1728481189996,3.5318,141.68,141.65,3.65732]
[1728481190199,44.17,141.72,141.65,0.12502]
[1728481190395,44.17,141.74,141.65,0.12502]
[1728481190605,3.5308,141.72,141.69,3.5313]
[1728481190898,3.5308,141.72,141.65,0.12502]
[1728481190899,45.57,141.76,141.65,0.12502]
[1728481191096,3.5308,141.72,141.68,3.5316]
[1728481191289,45.57,141.76,141.68,3.5316]
[1728481191687,3.5304,141.74,141.68,3.5316]
[1728481191891,45.57,141.76,141.65,44.29502]
[1728481192490,44.17,141.7,141.65,0.12502]
[1728481192796,44.17,141.72,141.65,0.12502]
[1728481193197,3.5312,141.7,141.66,3.532]
[1728481193397,44.17,141.74,141.65,0.12502]
[1728481194299,3.5305,141.73,141.65,44.29502]
[1728481194509,44.17,141.74,141.65,0.12502]
[1728481195195,3.5307,141.72,141.67,3.5318]
[1728481195395,44.17,141.74,141.65,0.12502]
[1728481195701,3.5311,141.71,141.67,3.5318]
[1728481195895,44.17,141.74,141.65,0.12502]
[1728481196299,3.5311,141.71,141.68,3.5316]
[1728481196795,44.17,141.74,141.65,0.12502]
[1728481196998,44.17,141.72,141.65,0.12502]
[1728481197497,44.17,141.72,141.65,3.65732]
[1728481197893,1.4,141.76,141.65,0.12502]
[1728481197894,44.17,141.7,141.65,0.12502]
[1728481198300,44.17,141.72,141.65,0.12502]
[1728481198701,3.5317,141.68,141.65,3.65732]
[1728481199600,44.17,141.72,141.65,0.12502]
[1728481200204,3.5319,141.67,141.65,0.12502]
[1728481200502,44.17,141.72,141.65,0.12502]
[1728481201403,44.17,141.72,141.66,3.532]
[1728481202011,3.5313,141.7,141.65,0.12502]
[1728481202306,44.17,141.74,141.65,0.12502]
[1728481202508,3.5313,141.7,141.67,3.5318]
[1728481202699,44.17,141.74,141.65,0.12502]
[1728481202900,44.17,141.72,141.65,0.12502]
[1728481203196,44.17,141.74,141.65,0.12502]
[1728481203402,1.4,141.76,141.65,0.12502]
[1728481203403,45.57,141.76,141.65,0.12502]
[1728481203602,1.4,141.76,141.74,3.5302]
[1728481203803,1.4,141.76,141.67,44.17]
[1728481204398,0.12502,141.77,141.67,44.17]
[1728481204702,3.5298,141.76,141.73,3.5303]
[1728481204902,0.12502,141.77,141.67,44.17]
[1728481205105,0.12502,141.77,141.69,44.17]
[1728481205307,0.12502,141.77,141.75,3.5298]
[1728481205503,0.12502,141.77,141.67,44.17]
[1728481205707,0.12502,141.77,141.69,44.17]
[1728481206411,0.12502,141.77,141.7,5.2133163]
[1728481206611,0.12502,141.77,141.71,5.2133163]
[1728481206906,0.12502,141.77,141.69,44.17]
[1728481207107,0.12502,141.77,141.72,3.5307]
[1728481207305,44.17,141.76,141.66,1.3434]
[1728481207509,44.17,141.76,141.67,5.22518206]
[1728481207808,44.17,141.74,141.68,5.22518206]
[1728481208104,44.17,141.74,141.68,3.5315]
[1728481208105,3.531,141.71,141.68,3.5315]
[1728481208810,3.531,141.71,141.65,0.12502]
[1728481209006,3.5308,141.72,141.66,5.22711184]
[1728481209307,3.5308,141.72,141.67,5.22620271]
[1728481209515,0.12502,141.77,141.68,5.22620271]
[1728481209809,44.17,141.75,141.69,5.22620271]
[1728481210008,44.17,141.75,141.65,0.12502]
[1728481210009,44.17,141.75,141.7,3.5309]
[1728481210206,44.17,141.75,141.65,3.65208316]
[1728481210408,44.17,141.75,141.66,5.22876245]
[1728481210614,3.5304,141.74,141.7,3.531]
[1728481210907,44.17,141.75,141.65,47.82208316]
[1728481211113,3.5305,141.73,141.7,3.531]
[1728481211309,44.17,141.75,141.65,47.82208316]
[1728481211513,0.12502,141.77,141.66,5.22941957]
[1728481211727,0.12502,141.77,141.67,5.22941957]
[1728481212009,0.12502,141.77,141.68,5.22941957]
[1728481212202,44.17,141.76,141.69,5.22941957]
[1728481212406,3.5306,141.73,141.7,8.76061957]
[1728481212607,44.17,141.76,141.65,44.29502]
[1728481212802,44.17,141.76,141.66,5.22934277]
[1728481213005,44.17,141.73,141.67,5.22934277]
[1728481213208,44.17,141.71,141.68,5.22934277]
[1728481213408,3.5316,141.69,141.66,3.532]
[1728481213616,44.17,141.73,141.65,0.12502]
[1728481213813,44.17,141.73,141.66,5.23542059]
[1728481214112,44.17,141.73,141.67,3.5319]
[1728481214416,44.17,141.73,141.65,0.12502]
[1728481214620,3.5313,141.7,141.67,3.5318]
[1728481214812,44.17,141.73,141.65,0.12502]
[1728481215012,44.17,141.73,141.66,5.23654252]
[1728481215214,3.5312,141.7,141.67,8.76834252]
[1728481215416,44.17,141.73,141.65,0.12502]
[1728481215716,44.17,141.74,141.66,5.23746824]
[1728481215918,44.17,141.74,141.67,3.5319]
[1728481215919,3.5314,141.7,141.67,3.5319]
[1728481216116,44.17,141.74,141.65,0.12502]
[1728481216317,44.17,141.74,141.66,5.23913133]
[1728481216516,3.5317,141.69,141.67,5.23913133]
[1728481216717,44.17,141.74,141.65,0.12502]
[1728481216917,44.17,141.72,141.66,5.23928444]
[1728481217108,44.17,141.72,141.67,5.23928444]
[1728481217313,44.17,141.74,141.68,5.24032879]
[1728481217511,44.17,141.74,141.65,0.12502]
[1728481217815,3.5316,141.69,141.66,8.77257703]
[1728481218011,44.17,141.72,141.67,5.24047703]
[1728481218214,44.17,141.72,141.68,5.24047703]
[1728481218417,3.5316,141.69,141.66,3.532]
[1728481218619,3.5316,141.69,141.65,0.12502]
[1728481218620,44.17,141.74,141.67,5.24118291]
[1728481218816,44.17,141.74,141.68,5.24118291]
[1728481219017,0.12502,141.77,141.67,44.17]
[1728481219321,0.12502,141.77,141.69,44.17]
[1728481219623,0.12502,141.77,141.7,5.23796653]
[1728481219922,0.12502,141.77,141.71,5.23796653]
[1728481220124,0.12502,141.77,141.69,44.17]
[1728481220125,0.12502,141.77,141.72,5.23796653]
[1728481220310,0.12502,141.77,141.73,5.23796653]
[1728481220517,0.12502,141.77,141.74,49.29796653]
[1728481220717,0.12502,141.77,141.76,3.5297]
[1728481220918,0.12502,141.77,141.76,8.76766653]
[1728481222119,0.12502,141.83,141.82,3.5282]
[1728481222823,3.5263,141.9,141.85,3.5272]
[1728481223026,3.5263,141.9,141.82,5.22010749]
[1728481223221,1.3598,141.91,141.83,49.23844441]
[1728481223420,4.8859,141.91,141.83,44.02]
[1728481223814,4.8859,141.91,141.77,0.12502]
[1728481223815,0.12502,141.95,141.88,44.02]
[1728481224015,0.12502,141.95,141.9,44.02]
[1728481224626,0.12502,141.95,141.88,44.02]
[1728481224828,0.12502,141.95,141.89,5.18998486]
[1728481225126,0.12502,141.95,141.88,44.02]
[1728481225437,0.12502,141.95,141.89,5.19069848]
[1728481225627,0.12502,141.95,141.88,44.02]
[1728481226037,0.12502,141.95,141.86,44.02]
[1728481226541,3.5252,141.94,141.89,3.5262]
[1728481226733,0.12502,141.95,141.86,44.02]
[1728481226929,0.12502,141.95,141.87,5.17502253]
[1728481227244,44.02,141.93,141.84,73.40360811]
[1728481227439,44.02,141.93,141.85,5.16999576]
[1728481227627,44.02,141.93,141.84,72.40360811]
[1728481227832,44.02,141.91,141.84,72.40360811]
[1728481228243,44.02,141.91,141.85,3.5272]
[1728481228444,1.3478,141.92,141.84,72.40360811]
[1728481228634,1.3478,141.92,141.87,3.5267]
[1728481228942,1.3478,141.92,141.84,72.40360811]
[1728481229244,1.3478,141.92,141.87,3.5267]
[1728481229729,1.3478,141.92,141.84,116.42360811]
[1728481229730,4.8737,141.92,141.84,116.42360811]
[1728481229929,4.8737,141.92,141.88,3.5267]
[1728481230129,1.3478,141.92,141.84,72.40360811]
[1728481230331,3.5266,141.89,141.84,72.40360811]
[1728481231034,3.5266,141.89,141.85,3.5273]
[1728481231329,1.3478,141.92,141.84,72.40360811]
[1728481231528,1.3478,141.92,141.88,3.5267]
[1728481231734,1.3478,141.92,141.84,72.40360811]
[1728481231936,1.3478,141.92,141.86,44.02]
[1728481232341,3.5253,141.94,141.88,44.02]
[1728481232734,0.12502,141.95,141.88,44.02]
[1728481233238,0.12502,141.95,141.9,3.526]
[1728481233636,0.12502,141.95,141.86,44.02]
[1728481234238,0.12502,141.95,141.85,44.02]
[1728481234438,0.12502,141.95,141.87,44.02]
[1728481234639,3.5254,141.94,141.87,44.02]
[1728481234839,0.12502,141.95,141.9,3.5262]
[1728481235040,0.12502,141.95,141.87,44.02]
[1728481235347,3.5252,141.94,141.9,3.526]
[1728481235743,0.12502,141.95,141.87,44.02]
[1728481235938,3.65012,141.95,141.91,3.5258]
[1728481236136,0.12502,141.95,141.87,44.02]
[1728481236648,0.12502,141.95,141.92,3.5255]
[1728481237040,0.12502,141.95,141.84,75.90595232]
[1728481237041,0.12502,141.95,141.9,44.02]
[1728481237239,0.12502,141.95,141.93,3.5253]
[1728481237945,0.12502,141.95,141.94,3.5252]
[1728481239057,0.12502,141.95,141.92,3.5257]
[1728481239346,0.12502,141.95,141.89,44.02]
[1728481240244,0.12502,141.95,141.94,47.5452]
[1728481240437,0.12502,142.01,141.94,44.02]
[1728481240845,3.64862,142.01,141.97,3.5243]
[1728481241249,3.64862,142.01,141.96,3.5247]
[1728481241448,0.12502,142.01,141.94,44.02]
[1728481241652,3.5239,142.0,141.94,44.02]
[1728481241844,0.12502,142.01,141.9,1.0]
[1728481241845,0.12502,142.01,141.92,44.02]
[1728481242152,3.5242,141.98,141.92,44.02]
[1728481242451,0.12502,142.01,141.91,43.99]
[1728481242845,3.5249,141.96,141.92,3.5255]
[1728481243045,3.5249,141.96,141.91,43.99]
[1728481243250,0.12502,142.01,141.91,43.99]
[1728481243553,0.12502,142.01,141.94,3.525]
[1728481243950,3.5245,141.97,141.94,3.525]
[1728481244150,3.5245,141.97,141.9,1.0]
[1728481244151,0.12502,142.01,141.93,47.4827201]
[1728481244355,0.12502,142.01,141.93,43.99]
[1728481244854,0.12502,142.01,141.93,47.59021552]
[1728481245046,3.64852,142.01,141.98,3.524]
[1728481245445,0.12502,142.01,141.98,3.524]
[1728481246451,3.64852,142.01,141.98,3.524]
[1728481246655,0.12502,142.01,141.93,47.59021552]
[1728481246856,0.12502,142.01,141.97,3.5244]
[1728481247152,0.12502,142.01,141.93,43.99]
[1728481247350,0.12502,142.01,141.94,3.5252]
[1728481247551,0.12502,142.01,141.91,43.99]
[1728481247747,3.5248,141.96,141.91,43.99]
[1728481247948,3.5248,141.96,141.93,3.5253]
[1728481248148,0.12502,142.01,141.91,43.99]
[1728481248345,3.5249,141.96,141.91,43.99]
[1728481248549,0.12502,142.01,141.92,3.5256]
[1728481248854,44.11502,142.01,141.89,0.12502]
[1728481249054,43.99,141.98,141.89,0.12502]
[1728481249753,43.99,141.98,141.9,3.5262]
[1728481249958,43.99,141.98,141.89,0.12502]
[1728481250259,43.99,141.98,141.89,3.65132]
[1728481250447,43.99,141.98,141.89,0.12502]
[1728481250853,51.16252,142.01,141.91,3.5258]
[1728481251155,51.16252,142.01,141.89,44.11502]
[1728481251365,51.16252,142.01,141.92,3.5257]
[1728481251958,3.5251,141.95,141.92,3.5257]
[1728481252151,44.11502,142.01,141.93,3.5253]
[1728481252347,3.5241,141.99,141.93,3.5253]
[1728481252547,0.12502,142.01,141.91,43.99]
[1728481252759,0.12502,142.01,141.95,3.5249]
[1728481253157,0.12502,142.01,141.91,43.99]
[1728481253455,44.11502,142.01,141.89,44.11502]
[1728481253669,0.12502,142.01,141.91,43.99]
[1728481254055,0.12502,142.01,141.94,43.99]
[1728481254250,0.12502,142.01,141.99,3.5238]
[1728481254455,0.12502,142.01,141.96,43.99]
[1728481254762,0.12502,142.01,141.99,43.99]
[1728481254958,0.12502,142.01,142.0,3.5237]
[1728481255256,0.12502,142.07,141.99,43.99]
[1728481255460,0.12502,142.07,142.04,3.5227]
[1728481255758,0.12502,142.07,142.03,43.99]
[1728481256153,273.30632,142.08,142.06,43.99]
[1728481256455,273.30632,142.08,142.02,43.99]
[1728481257767,273.30632,142.08,142.04,43.99]
[1728481258261,266.48172,142.08,142.04,43.99]
[1728481258761,266.48172,142.08,142.02,43.99]
[1728481259261,266.48172,142.08,142.03,3.523]
[1728481259651,3.522,142.07,142.03,3.523]
[1728481259863,266.48172,142.08,142.02,43.99]
[1728481260054,266.48172,142.08,142.02,47.513]
[1728481260366,266.48172,142.08,142.02,43.99]
[1728481260663,266.48172,142.08,142.04,3.5227]
[1728481260960,3.522,142.07,142.02,43.99]
[1728481261163,266.48172,142.08,142.03,3.5229]
[1728481261364,3.5221,142.07,142.03,3.5229]
[1728481261756,266.48172,142.08,142.02,43.99]
[1728481261957,3.5223,142.06,142.02,43.99]
[1728481262161,266.48172,142.08,142.02,43.99]
[1728481262363,266.48172,142.08,142.01,0.12502]
[1728481262767,266.48172,142.08,142.02,3.5231]
[1728481263069,3.5222,142.06,142.02,43.99]
[1728481263366,266.48172,142.08,142.02,43.99]
[1728481263667,154.27172,142.08,142.06,43.99]
[1728481263865,154.27172,142.08,142.07,3.522]
[1728481264269,89.65572,142.08,142.07,3.522]
[1728481264563,88.65572,142.08,142.07,3.522]
[1728481264765,84.64660666,142.08,142.07,3.522]
[1728481265066,81.64660666,142.08,142.07,3.522]
[1728481265262,15.13180666,142.08,142.07,3.522]
[1728481265461,12.13180666,142.08,142.07,3.522]
[1728481266069,0.12502,142.13,142.07,3.60889423]
[1728481266270,199.23518,142.17,142.12,43.99]
[1728481266572,199.23518,142.17,142.14,43.99]
[1728481266765,199.23518,142.17,142.15,3.52]
[1728481267168,199.23518,142.17,142.14,43.99]
[1728481267464,199.23518,142.17,142.12,72.26163469]
[1728481267771,199.23518,142.17,142.08,47.47333863]
[1728481267968,3.5202,142.15,142.08,43.99]
[1728481268175,199.23518,142.17,142.08,43.99]
[1728481268365,243.22518,142.17,142.07,0.12502]
[1728481268565,3.5213,142.1,142.07,0.12502]
[1728481269071,243.22518,142.15,142.07,0.12502]
[1728481269273,3.5217,142.08,142.07,0.12502]
[1728481269568,2.2776,142.14,142.07,0.12502]
[1728481269775,199.23518,142.15,142.08,43.99]
[1728481270166,202.75538,142.15,142.11,3.5208]
[1728481270367,199.23518,142.15,142.08,43.99]
[1728481271361,3.5205,142.13,142.08,43.99]
[1728481272467,3.5205,142.13,142.07,27.16502]
[1728481272973,199.23518,142.15,142.07,27.16502]
[1728481273172,3.5212,142.11,142.07,0.12502]
[1728481273373,199.23518,142.15,142.07,0.12502]
[1728481273569,3.5215,142.09,142.07,0.12502]
[1728481273774,199.23518,142.15,142.07,0.12502]
[1728481274480,27.04,142.14,142.07,0.12502]
[1728481274675,27.04,142.12,142.01,0.12502]
[1728481274874,0.12502,142.13,142.01,0.12502]
[1728481274875,27.04,142.09,142.01,0.12502]
[1728481275075,2.283,142.08,142.01,0.12502]
[1728481275275,3.5232,142.03,142.01,0.12502]
[1728481275472,2.283,142.08,142.01,0.12502]
[1728481275780,3.5241,141.99,141.95,27.16502]
[1728481276179,27.04,142.04,141.95,0.12502]
[1728481276681,27.04,142.04,141.96,3.5246]
[1728481277386,0.12502,142.07,141.95,3.64992]
[1728481277581,27.04,142.04,141.95,3.64992]
[1728481277779,27.04,142.04,141.95,0.12502]
[1728481277982,27.04,142.01,141.95,0.12502]
[1728481278184,2.3448,142.0,141.95,0.12502]
[1728481278483,27.04,141.99,141.9,3.526]
[1728481278781,27.04,141.99,141.89,0.12502]
[1728481278974,3.5247,141.96,141.92,3.5255]
[1728481279480,27.04,141.99,141.89,0.12502]
[1728481279676,27.04,141.97,141.89,0.12502]
[1728481279874,3.5251,141.95,141.89,0.12502]
[1728481280185,27.04,141.97,141.89,0.12502]
[1728481281181,3.5262,141.91,141.89,0.12502]
[1728481281879,3.5251,141.95,141.89,0.12502]
[1728481282084,27.04,141.97,141.89,0.12502]
[1728481282785,27.04,141.95,141.89,0.12502]
[1728481283183,27.04,141.95,141.89,3.65132]
[1728481283487,27.04,141.95,141.89,0.12502]
[1728481283690,2.1732,141.97,141.89,0.12502]
[1728481284181,3.5252,141.95,141.91,3.5259]
[1728481284378,2.1732,141.97,141.89,0.12502]
[1728481284590,2.1732,141.97,141.9,27.04]
[1728481284883,2.2273,141.98,141.92,27.04]
[1728481285286,2.2273,141.98,141.96,3.5246]
[1728481285488,2.2273,141.98,141.92,27.04]
[1728481285878,2.2273,141.98,141.9,27.04]
[1728481286385,3.5258,141.92,141.89,0.12502]
[1728481286584,2.2273,141.98,141.89,0.12502]
[1728481287378,27.04,141.97,141.89,0.12502]
[1728481287586,16.22,141.97,141.89,0.12502]
[1728481287981,16.22,141.97,141.89,3.65132]
[1728481287982,3.5256,141.93,141.89,3.65132]
[1728481288186,3.5256,141.93,141.89,0.12502]
[1728481288788,3.5256,141.93,141.9,3.526]
[1728481289179,45.4873,141.98,141.89,0.12502]
[1728481289385,18.4473,141.98,141.89,0.12502]
[1728481289591,45.4873,141.98,141.89,0.12502]
[1728481289790,3.526,141.91,141.89,0.12502]
[1728481290096,27.04,141.95,141.89,0.12502]
[1728481290287,3.5262,141.9,141.83,27.16502]
[1728481290488,27.16502,141.95,141.87,3.5269]
[1728481290687,27.16502,141.95,141.83,27.16502]
[1728481291197,27.16502,141.95,141.87,3.5268]
[1728481291684,27.16502,141.95,141.83,27.16502]
[1728481291885,3.5262,141.9,141.83,27.16502]
[1728481292294,27.04,141.93,141.83,0.12502]
[1728481292484,3.5271,141.87,141.83,0.12502]
[1728481292688,2.3073,141.92,141.83,0.12502]
[1728481292988,3.5269,141.88,141.83,0.12502]
[1728481293189,27.04,141.91,141.84,75.93130811]
[1728481293390,27.04,141.91,141.84,72.40360811]
[1728481293590,2.1993,141.9,141.84,72.40360811]
[1728481294998,2.1993,141.9,141.88,3.5265]
[1728481295187,2.1993,141.9,141.84,72.40360811]
[1728481295493,2.1993,141.9,141.87,3.5268]
[1728481295690,2.1993,141.9,141.84,72.40360811]
[1728481295986,2.1993,141.9,141.86,3.5272]
[1728481296396,3.5268,141.88,141.84,72.40360811]
[1728481296884,2.1993,141.9,141.84,72.40360811]
[1728481297090,3.5265,141.89,141.84,72.40360811]
[1728481297290,2.1993,141.9,141.86,3.527]
[1728481297490,3.5265,141.89,141.86,3.527]